{"text_format":"2","workbook":"xlsx","n_sheets":12,"sheets":["共通","规程浏览画面","基本信息","图片来源","拼图详细设置","信息模板","标签选择","执行流程","参数设置","分级设置","清洁度编码","报告选项"],"not_rendered":{"charts":0,"images":0,"macros":0,"external_links":0,"defined_names":4,"comments":12,"pivot_tables":0},"unopened":[],"bounds":{"document_bytes":16777216,"sheet_cells":100000,"run_cost":"one","rows_first":2000,"rows_last":500,"rows_between":2000,"halvings":0,"cell_chars":16384,"cell_head_chars":4096},"cells_cut":0,"cells_raw":0,"read":"whole","date_system":"1900"}

{"sheet":"共通","index":0,"n_rows":14,"n_cols":9,"rows_kept":14,"cut":false,"hidden":false,"merged":[[26,2,26,4],[27,2,27,4],[21,2,21,4],[22,2,22,4],[23,2,23,4],[24,2,24,4],[25,2,25,4],[20,2,20,4],[9,2,9,4],[10,2,10,4],[11,2,11,4],[12,2,12,4],[13,2,13,4],[14,2,14,4],[15,2,15,4],[16,2,16,4],[17,2,17,4],[18,2,18,4],[19,2,19,4],[8,2,8,4],[3,2,3,4],[4,2,4,4],[5,2,5,4],[6,2,6,4],[7,2,7,4]]}
[]
[null,"模块","系统设置","画面","共通","用例数",{"$f":"COUNTA(C5:C28)","v":10},"BUG数",{"$f":"COUNTIF(H5:H28,\"否\")+COUNTIF(H5:H28,\"否→是\")","v":0}]
[]
[null,"序号","测试用例",null,null,"测试日期","测试者","是否通过","备注"]
[null,1,"画面启动无明显卡顿"]
[null,2,"标题栏无图标"]
[null,3,"标题栏显示正确"]
[null,4,"画面初始显示在主显示器屏幕中央"]
[null,5,"画面为固定大小的，无最大化最小化按钮，不可拉动改变画面尺寸"]
[null,6,"画面可改变尺寸大小的，改变画面大小后，画面内项目布局仍整齐合理"]
[null,7,"画面内项目整齐，各项目排列间距均等"]
[null,8,"画面文字无多余、缺失及错误"]
[null,9,"画面初始焦点落在画面左上角第一个可具有焦点的控件上"]
[null,10,"页面Tab键顺序为：先左到右，然后从上至下"]

{"sheet":"规程浏览画面","index":1,"n_rows":35,"n_cols":9,"rows_kept":35,"cut":false,"hidden":false,"merged":[[26,3,26,4],[27,3,27,4],[28,3,28,4],[29,3,29,4],[31,3,31,4],[37,3,37,4],[38,3,38,4],[30,3,30,4],[32,3,32,4],[33,3,33,4],[34,3,34,4],[35,3,35,4],[36,3,36,4],[22,3,22,4],[23,3,23,4],[24,3,24,4],[25,3,25,4],[17,3,17,4],[18,3,18,4],[19,3,19,4],[20,3,20,4],[21,3,21,4],[15,3,15,4],[16,3,16,4],[3,3,3,4],[6,3,6,4],[14,3,14,4],[4,3,4,4],[5,3,5,4],[7,3,7,4],[9,3,9,4],[13,3,13,4],[11,3,11,4],[10,3,10,4],[12,3,12,4],[8,3,8,4]]}
[]
[null,"模块","规程管理","画面","规程浏览画面","用例数",{"$f":"COUNTA(D5:D33)","v":29},"BUG数",{"$f":"COUNTIF(H5:H15,\"否\")+COUNTIF(H5:H15,\"否→是\")","v":0}]
[]
[null,"序号","测试项","确认内容",null,"测试日期","测试者","是否通过","备注"]
[null,1,"日期","初始默认情况下【日期】起始日期为当前日期减3年，结束日期为当前日期"]
[null,2,null,"日期设定后自动执行查询"]
[null,3,"关键字","不区分大小写，输入完成后自动执行查询"]
[null,4,"规程列表","分两大类规程：用户规程和系统规程。用户规程可编辑，系统规程为只读，无法编辑."]
[null,5,null,"数据来源于项目生成目录中的Metis2.0\\Metis\\bin\\Debug\\plugins\\Cleanliness\\Config\\Rules\\中配置文件"]
[null,6,null,"规程创建日期在设定的【日期】范围内，同时满足【关键字】查询条件"]
[null,7,null,"初始默认情况顶层节点为展开状态，并自动选中第一个节点下的第一个规程。"]
[null,8,null,"当前选择的规程对应的项目编号背景色为：蓝色，其它规程对应节点背景色透明，即无背景色"]
[null,9,"结果确认","确认用户规程在配置文件中的ID是以1开头的。"]
[null,10,null,"确认系统规程在配置文件中的ID是以0开头的"]
[null,11,"规程浏览","信息分为：基本信息、图片来源、信息模板、执行流程、参数设置、分级设置、报告选项。切换选项卡可查看对应信息"]
[null,12,"切换规程","修改当前规程，未点击菜单中的【保存】时，切换到其它规程时，弹出提示框，提示“规程[测试规程-相机扫描]未保存，是否需要保存？”，点击【确定】对当前规程进行保存操作，点击【取消】中上操作，不保存修改，切换规程"]
[null,13,"克隆规程","选择规程，点击菜单中的【克隆规程】，点击菜单中【保存】，"]
[null,14,"操作结果确认","规程列表中出现克隆的新规程"]
[null,15,null,"关闭软件，重新启动，确认克隆的规程是否显示在规程列表中"]
[null,16,null,"确认项目生成目录中的Metis2.0\\Metis\\bin\\Debug\\plugins\\Cleanliness\\Config\\Rules\\中配置文件中包含克隆的新规程的配置文件"]
[null,17,"异常信息提示","规程名称录入当前存在的名称，点击菜单中【保存】，弹出提示框，提示“规程名称重复！”点击【确定】关闭提示框"]
[null,18,"删除规程","选择规程，点击菜单中的【删除规程】，弹出确认提示框，提示“确定要删除当前规程吗？”，点【确定】完成删除操作，点【取消】中止操作，关闭提示框"]
[null,19,"操作结果确认","确认被删除的规程在规程列表中无显示"]
[null,20,null,"关闭软件，重新启动，确认被删除的规程在规程列表中无显示"]
[null,21,null,"确认项目生成目录中的Metis2.0\\Metis\\bin\\Debug\\plugins\\Cleanliness\\Config\\Rules\\中配置文件中是否含被删除规程的配置文件"]
[null,22,"重新加载","规程浏览过程中，对规程进行编辑，如无更新的情况，点击菜单中【重新加载】可对所有规程按钮查询条件筛选显示"]
[null,23,"保存","保存对规程的编辑，操作结果直接更新在规程列表中和项目生成目录中"]
[null,24,"导入规程","规程浏览中，点击菜单【导入规程】，弹出“导入规程”文件选择窗体，选定要操作的规程文件，扩展名为\".rxp\"，点击【打开】,完成导入操作"]
[null,25,"操作结果确认","确认规程列表中出现导入的新规程"]
[null,26,null,"确认项目生成目录Metis2.0\\Metis\\bin\\Debug\\plugins\\Cleanliness\\Config\\Rules\\中配置文件中是否出现导入的规程相关配置文件"]
[null,27,null,"关闭软件，重新启动，确认被必入的规程是否依然在规程列表中"]
[null,28,"导出规程","规程浏览中，点击菜单【导出规程】，弹出“导出规程”窗体，选定文件存放路径，点击【保存】,完成导出操作"]
[null,29,"操作结果确认","确定选定的存路径是否存在扩展名为\".rxp\"的与导出规程同名的文件 "]
[null,30,null,"将扩展名为\".rxp\"的导出文件，修改扩展名为“.Zip”,解压后查看文件，项目生成目录Metis2.0\\Metis\\bin\\Debug\\plugins\\Cleanliness\\Config\\Rules\\目录下选定规程内容对比，确认是否导出了全部相关内容。"]
[null,31,null,"将选择的规程从规程列表中删除，将导出的规程重新导入，查看导入后的规程与原规程配置是否相同"]

{"sheet":"基本信息","index":2,"n_rows":11,"n_cols":9,"rows_kept":11,"cut":false,"hidden":false,"merged":[[11,3,11,4],[12,3,12,4],[13,3,13,4],[14,3,14,4],[15,3,15,4],[9,3,9,4],[10,3,10,4],[8,3,8,4],[3,3,3,4],[4,3,4,4],[5,3,5,4],[6,3,6,4],[7,3,7,4]]}
[]
[null,"模块","规程管理","画面","规程浏览_基本信息","用例数",{"$f":"COUNTA(D5:D15)","v":7},"BUG数",{"$f":"COUNTIF(H5:H9,\"否\")+COUNTIF(H5:H9,\"否→是\")","v":0}]
[]
[null,"序号","测试项","确认内容",null,"测试日期","测试者","是否通过","备注"]
[null,1,"规程名称","规程名称。要求非空，且唯一。"]
[null,2,"创建者","只读，默认为创建规程时的登录用户名称"]
[null,3,"创建时间","只读，不可编辑。默认为规程保存的时间。"]
[null,4,"说明","对规程的详细描述信息"]
[null,5,"异常信息提示","输入已在存规程名称，点击菜单【保存】按钮，弹出“规程名称重复！”，信息提示窗口。点击【确定】按钮可以关闭信息提示窗口"]
[null,6,"操作结果确认","确认规程名称与左侧列表中名称相同"]
[null,7,null,"确认规程基本信息与项目生成目录中的Metis2.0\\Metis\\bin\\Debug\\plugins\\Cleanliness\\Config\\Rules\\中配置文件中内容一致"]

{"sheet":"图片来源","index":3,"n_rows":27,"n_cols":9,"rows_kept":27,"cut":false,"hidden":false,"merged":[[31,3,31,4],[32,3,32,4],[27,3,27,4],[28,3,28,4],[29,3,29,4],[30,3,30,4],[23,3,23,4],[24,3,24,4],[25,3,25,4],[26,3,26,4],[17,3,17,4],[18,3,18,4],[19,3,19,4],[20,3,20,4],[21,3,21,4],[22,3,22,4],[4,3,4,4],[3,3,3,4],[16,3,16,4],[5,3,5,4],[6,3,6,4],[7,3,7,4],[8,3,8,4],[9,3,9,4],[10,3,10,4],[11,3,11,4],[12,3,12,4],[13,3,13,4],[14,3,14,4],[15,3,15,4]]}
[]
[null,"模块","规程管理","画面","规程浏览_图片来源","用例数",{"$f":"COUNTA(D5:D27)","v":23},"BUG数",{"$f":"COUNTIF(H5:H27,\"否\")+COUNTIF(H5:H27,\"否→是\")","v":0}]
[]
[null,"序号","测试项","确认内容",null,"测试日期","测试者","是否通过","备注"]
[null,1,"图片来源","界面动态显示。图片来源为“本地图片”和“项目图库”只显示图片设置项，当图片来源为“相机扫描”时，界面显示三部分设置项：相机设置、拼图设置、图片设置"]
[null,2,"标尺","标尺数据源来自设置模块中的标尺标定。"]
[null,3,null,"“倍率”和“分辨率”根据标尺选择，自动显示。与设置模块中的标尺标定设置一致"]
[null,4,"（相机设置）明场","明场相机设置方案选择。确认相机配置与标尺相对应"]
[null,5,"阴影矫正（明场）","明场阴影矫正图片选择，选中”阴影矫正“，在相机扫描时会按所选择的图片进行阴影矫正，如果不选择，则扫描时不进行限时矫正"]
[null,6,"（相机设置）偏光","偏光相机设置方案选择。确认相机配置与标尺相对应"]
[null,7,"阴影矫正（偏光）","偏光阴影矫正图片选择，选中”阴影矫正“，在相机扫描时会按所选择的图片进行阴影矫正，如果不选择，则扫描时不进行限时矫正"]
[null,8,"相机设置","弹出”实时预览界面“对相机参数进行设置"]
[null,9,"采集按钮","弹出实时预览界面，拍摄图片做为阴影矫正使用的图片"]
[null,10,"拼图设置","详细设置在点击【详细设置】弹出的“拼图设置”界面。"]
[null,11,"行数","拼图要执行的行数"]
[null,12,"列数","拼图要执行的列数"]
[null,13,"重叠率","执行拼图的重叠率"]
[null,14,"拼图范围","矩形或圆形"]
[null,15,"详细设置按钮","弹出拼图设置画面"]
[null,16,"预览区域","更改滤膜尺寸、形状、边缘厚度、拼图区域等设置项，右侧区域自动调整，且尺寸对应正确"]
[null,17,null,"拼图的“行数”、“列数”、“视场尺寸”、根据拼图的区域自动调整"]
[null,18,"操作结果确认","修改配置后，确认执行拼图时，拼图和聚焦是否按此处设置执行"]
[null,19,null,"确认图片来源选项卡中的拼图设置，与弹出的拼图设置界面中的行数、列数、重叠率、拼图范围是否相同"]
[null,20,"相机设置","连接相机情况下，点击【相机设置】，弹出相机预览界面，可以对相机进行设置。"]
[null,21,"异常信息提示","未连相机的时，点击【相机设置】，弹出确认框，提示“未找到可用相机”点击【确定】按钮可以关闭信息提示窗口"]
[null,22,null,"图片来源中阴影矫正置空，切换规程或切换Tab页，弹出确认框，提示“请选择明场阴影矫正照片！”点击【确定】按钮可以关闭信息提示窗口"]
[null,23,"操作结果确认","确认在执行相机扫描检测时，按设定的相机参数进行拍照"]

{"sheet":"拼图详细设置","index":4,"n_rows":26,"n_cols":9,"rows_kept":26,"cut":false,"hidden":false,"merged":[[29,3,29,4],[30,3,30,4],[5,3,5,4],[25,3,25,4],[26,3,26,4],[27,3,27,4],[28,3,28,4],[16,3,16,4],[17,3,17,4],[21,3,21,4],[22,3,22,4],[24,3,24,4],[23,3,23,4],[13,3,13,4],[14,3,14,4],[15,3,15,4],[18,3,18,4],[19,3,19,4],[20,3,20,4],[10,3,10,4],[11,3,11,4],[12,3,12,4],[9,3,9,4],[3,3,3,4],[4,3,4,4],[6,3,6,4],[7,3,7,4],[8,3,8,4]]}
[]
[null,"模块","规程管理","画面","规程浏览_图片来源_拼图设置","用例数",{"$f":"COUNTA(D5:D35)","v":22},"BUG数",{"$f":"COUNTIF(H5:H25,\"否\")+COUNTIF(H5:H25,\"否→是\")","v":0}]
[]
[null,"序号","测试项","确认内容",null,"测试日期","测试者","是否通过","备注"]
[null,1,"滤膜设置","对滤膜尺寸进行设置"]
[null,2,"内径","圆形滤膜内径"]
[null,3,"内长","矩形滤膜长度"]
[null,4,"内宽","矩形滤膜宽度"]
[null,5,"边缘厚度","夹压滤膜的那个夹，没啥用的，就是给个直观边缘形状（运行后是被隐藏的）"]
[null,6,"拼图","拼图相关设置"]
[null,7,"直径","圆形拼图区域直径，单位微米"]
[null,8,"长度","矩形长度，单位微米"]
[null,9,"宽度","矩形宽度，单位微米"]
[null,10,"行数","拼图要执行的行数，根据拼图的区域自动调整，只读"]
[null,11,"列数","拼图要执行的列数，根据拼图的区域自动调整，只读。"]
[null,12,"重叠率","执行拼图的重叠率"]
[null,13,"视场尺寸","根据图片来源中”图片设置“中的标尺自动计算，只读"]
[null,14,"聚焦","设置聚焦参数"]
[null,15,"不聚焦","选中状态下，拍照扫描时不聚焦"]
[null,16,"聚焦补偿","选中状态下，拍照扫描时进行聚焦补偿"]
[null,17,"自动聚焦","选中状态下，按设定张数进行聚焦。每几张进行一次自动聚焦。下拉框选择包括：每1张，每2张，每3张，每4张，每5张，每6张"]
[null,18,"预览区域","更改滤膜尺寸、形状、边缘厚度、拼图区域等设置项，右侧区域自动调整，且尺寸对应正确"]
[null,19,"确定按钮","保存拼图相关配置项，关闭界面"]
[null,20,"取消按钮","不保存，关闭界面"]
[null,21,"操作结果确认","修改配置后，确认执行拼图时，拼图和聚焦是否按此处设置执行"]
[null,22,null,"修改拼图的区域的尺寸，30000，40000，47000，等多个数据，保存后，执行相机扫描检测。确认检测正常执行"]

{"sheet":"信息模板","index":5,"n_rows":28,"n_cols":9,"rows_kept":28,"cut":false,"hidden":false,"merged":[[44,3,44,4],[33,3,33,4],[34,3,34,4],[35,3,35,4],[36,3,36,4],[37,3,37,4],[38,3,38,4],[39,3,39,4],[40,3,40,4],[41,3,41,4],[42,3,42,4],[43,3,43,4],[32,3,32,4],[21,3,21,4],[22,3,22,4],[23,3,23,4],[24,3,24,4],[25,3,25,4],[26,3,26,4],[27,3,27,4],[28,3,28,4],[29,3,29,4],[30,3,30,4],[31,3,31,4],[20,3,20,4],[9,3,9,4],[10,3,10,4],[11,3,11,4],[12,3,12,4],[13,3,13,4],[14,3,14,4],[15,3,15,4],[16,3,16,4],[17,3,17,4],[18,3,18,4],[19,3,19,4],[8,3,8,4],[3,3,3,4],[4,3,4,4],[5,3,5,4],[6,3,6,4],[7,3,7,4]]}
[]
[null,"模块","规程管理","画面","规程浏览_信息模板","用例数",{"$f":"COUNTA(D5:D42)","v":24},"BUG数",{"$f":"COUNTIF(#REF!,\"否\")+COUNTIF(#REF!,\"否→是\")","v":{"$error":"#REF!"}}]
[]
[null,"序号","测试项","确认内容",null,"测试日期","测试者","是否通过","备注"]
[null,1,"界面尺寸宽","检测时信息录入界面的宽度，设定范围1~10000"]
[null,2,"界面尺寸高","检测时信息录入界面的高度，设定范围1~10000"]
[null,3,"标签名","信息输入框绑定的标签名称"]
[null,4,"标签选择按钮","弹出“标签选择”界面"]
[null,5,null,"表格中数据来源\".\\plugins\\Cleanliness\\Config\\TagLibrary.xml\""]
[null,6,"左边距","控件有信息录入界面中的左边距，设定范围1~10000"]
[null,7,"上边距","控件有信息录入界面中的上边距，设定范围1~10000"]
[null,8,"尺寸-宽","控件的宽度，只读。根据操作区域中鼠标操作自动更新宽度"]
[null,9,"尺寸-高","控件的高度，只读。根据操作区域中鼠标操作自动更新宽度"]
[null,10,"文本颜色","下拉框选择字体颜色"]
[null,11,"Tab序","设置控件的Tab顺序"]
[null,12,"滤膜共有","是否多个滤膜共用一个输入值。值 为“是”共用，“否”时不共用。"]
[null,13,"必要","输入项是否允许空值。值 为“是”进行非空验证，如果无输入内容会提示，“否”，不进行验证，允许不输入任何内容。"]
[null,14,"列表选项","控件为下拉框时，下拉列表可以出现的内容在此设置"]
[null,15,"操作区域","中间操作区域，选择任何项，在右侧可以查看到详细的位置信息，名称，字体样式等"]
[null,16,"删除项","选择要删除的信息项，右键，弹出菜单中选择【删除】。所选择信息项从操作区清除。"]
[null,17,"保存","点击菜单中【保存】按钮，重新查看信息模板，确定信息项已成功删除"]
[null,18,"操作结果确认","确认项目生成目录中的Metis2.0\\Metis\\bin\\Debug\\plugins\\Cleanliness\\Config\\Rules\\中配置文件中，新增、编辑、删除内容是否与操作一致"]
[null,19,null,"执行检测录入信息时，设定为“必要”的信息项置空，点击【确定】按钮，确认是否有非空项需录入的相关提示信息"]
[null,20,null,"确认检测时弹出的信息录入界面与规程中的信息模板的窗体尺寸、显示内容、边距、文字颜色等一致，不存在少项或是显示不全的情况"]
[null,21,null,"确认设定为“滤膜共有”的信息项，在多滤膜检测时，是否实现了，数据多滤膜共用，只需录入一次，其它滤膜可共用录入信息"]
[null,22,null,"确认信息模板中下拉框中设定的选项，与检测时录入界面中下拉框的可选项是否一致"]
[null,23,null,"确认未设定标签名的情况下，界面右侧标签弹出的“标签选择”界面内显示的为未绑定的标签，不存在已绑定的标签名"]
[null,24,null,"确认信息录入后，在报告或是检测结果界面中显示的项目与录入信息项名称相同"]

{"sheet":"标签选择","index":6,"n_rows":15,"n_cols":9,"rows_kept":15,"cut":false,"hidden":false,"merged":[[3,3,3,4],[9,3,9,4],[10,3,10,4],[12,3,12,4],[7,3,7,4],[13,3,13,4],[20,3,20,4],[14,3,14,4],[15,3,15,4],[16,3,16,4],[17,3,17,4],[18,3,18,4],[19,3,19,4],[30,3,30,4],[31,3,31,4],[4,3,4,4],[5,3,5,4],[6,3,6,4],[8,3,8,4],[11,3,11,4],[29,3,29,4],[27,3,27,4],[28,3,28,4],[21,3,21,4],[22,3,22,4],[23,3,23,4],[24,3,24,4],[25,3,25,4],[26,3,26,4]]}
[]
[null,"模块","规程管理","画面","规程浏览_信息模板_标签选择","用例数",{"$f":"COUNTA(D5:D29)","v":11},"BUG数",{"$f":"COUNTIF(#REF!,\"否\")+COUNTIF(#REF!,\"否→是\")","v":{"$error":"#REF!"}}]
[]
[null,"序号","测试项","确认内容",null,"测试日期","测试者","是否通过","备注"]
[null,1,"分类","标签的分类选择，初始默认选项为“全部”。下拉框选项包括：全部、分析实验室、客户信息、检测目标、过滤说明、干燥说明、制样信息、清洗说明、项目信息"]
[null,2,"搜索","根据输入的内容，对分类和名称进行模糊查询，包含输入内容的标签会显示在表格中"]
[null,3,"标签表格","信息输入框绑定的标签名称。显示信息包括：分类、名称、数据库表名、数据表列名。初始默认显示全部标签信息"]
[null,4,null,"表格中数据来源\".\\plugins\\Cleanliness\\Config\\TagLibrary.xml\""]
[null,5,"切换分类","切换分类选项时，标签表格根据选择的分类名称，自动更新表格，显示所选分类的标签信息"]
[null,6,"绑定标签查看","选择已绑定标签的信息项，标签选择窗体默认显示绑定的标签信息。"]
[null,7,"未绑定标签查看","选择未绑定标签的信息项，标签选择窗体默认显示当前剩余的未被绑定的标签信息。"]
[null,8,"确定按钮","将界面操作保存到对应配置文件中"]
[null,9,"取消按钮 ","不保存操作信息，直接关闭窗体"]
[null,10,"操作结果确认","点击信息模板的中信息输入项，查看右侧区域中的标签名，是否与此前设置一致"]
[null,11,null,"关闭软件，重启后查看信息输入项的材名，是否与设置相同"]

{"sheet":"执行流程","index":7,"n_rows":35,"n_cols":9,"rows_kept":35,"cut":false,"hidden":false,"merged":[[3,3,3,4],[34,3,34,4],[21,3,21,4],[22,3,22,4],[15,3,15,4],[16,3,16,4],[4,3,4,4],[5,3,5,4],[6,3,6,4],[11,3,11,4],[12,3,12,4],[9,3,9,4],[32,3,32,4],[33,3,33,4],[14,3,14,4],[26,3,26,4],[19,3,19,4],[20,3,20,4],[23,3,23,4],[30,3,30,4],[31,3,31,4],[27,3,27,4],[28,3,28,4],[29,3,29,4],[24,3,24,4],[25,3,25,4],[7,3,7,4],[8,3,8,4],[10,3,10,4],[17,3,17,4],[18,3,18,4],[13,3,13,4]]}
[]
[null,"模块","规程管理","画面","规程浏览-执行流程","用例数",{"$f":"COUNTA(D5:D38)","v":31},"BUG数",{"$f":"COUNTIF(#REF!,\"否\")+COUNTIF(#REF!,\"否→是\")","v":{"$error":"#REF!"}}]
[]
[null,"序号","测试项","确认内容",null,"测试日期","测试者","是否通过","备注"]
[null,1,"分析范围设置","检测图片来自本地图片或是项目图库时，“分析范围设置”界面为只读，无法编辑。只有是相机扫描的时候，才可以对分析范围进行设置。"]
[null,2,"全幅","整个滤膜"]
[null,3,"圆形  直径","直径为设定值的圆形区域。设定值范围：50~99999"]
[null,4,"矩形 宽度","矩形宽度为设定值。设定值范围：50~99999"]
[null,5,"矩形 高度","矩形高度为设定值。设定值范围：50~99999"]
[null,6,"检测时可交互","选中状态时，检测过程中会弹出此交互界面。如未选择，刚检测时按换程中的设置执行，不会弹出交互界面。"]
[null,7,"预览区域","对直径或宽度、高度设置时，右侧的尺寸与设定值相对"]
[null,8,"操作结果确认","对直径或宽度、高度设置时，右侧的尺寸与设定值相对"]
[null,9,null,"保存后，重新打开界面显示内容与设置相同"]
[null,10,null,"确认执行检测时，检测范围与设定是否相同"]
[null,11,"物相提取设置","点击，切换到”物相提取设置“Tab页"]
[null,12,"阈值1灰度区间","设定值范围：0~255，调整数值后直接生效"]
[null,13,"阈值1峰值比例","设定值范围：0~100"]
[null,14,"阈值2灰度区间","设定值范围：0~255"]
[null,15,"阈值2峰值比例","设定值范围：0~100"]
[null,16,"显示原图","选中状态下，显示原始图片，不进行二值操作等处理。操作后直接生效"]
[null,17,"更换图片按钮","弹出图片选择窗体，选择图片后，更换预览区域显示的图片"]
[null,18,"孔洞填充","选中状态，对二值化后的图像进行孔洞填充。非选中状态则不进行处理。操作后直接生效"]
[null,19,"删除碎屑","选中状态，对二值化后的图像进行碎屑删除。非选中状态则不进行处理。设定值范围：5~999。操作后直接生效"]
[null,20,"图片像素尺寸","打开图片的以像素为单位的图片尺寸"]
[null,21,"图片微米尺寸","打开图片的以微米为单位的图片尺寸"]
[null,22,"预览区域","修改设置后，预览区域直接可见操作效果"]
[null,23,"操作结果确认","确认调整灰度区间，直方图随之调整，预览区图片二值结果根据设定值进行调整。"]
[null,24,null,"点击预览区域上方【放大】按钮，确认图片是否放大"]
[null,25,null,"点击预览区域上方【缩小】按钮，确认图片是否缩小"]
[null,26,null,"点击预览区域上方【初始大小】按钮，确认图片是否恢复为原始大小 "]
[null,27,null,"放大图片后，点击“小手”，确认鼠标扡动图片是否可以可以移动图片"]
[null,28,null,"放大图片后，点击“箭头”，确认鼠标恢复为正常"]
[null,29,null,"确认项目生成目录中的Metis2.0\\Metis\\bin\\Debug\\plugins\\Cleanliness\\Config\\Rules\\中配置文件中内容与设置一致"]
[null,30,null,"确认关闭软件后，重新打开规程查看的执行流程与设定值一致"]
[null,31,null,"确认勾选了”检测时可交互“，后检测过程中是否弹出该界面"]

{"sheet":"参数设置","index":8,"n_rows":25,"n_cols":9,"rows_kept":25,"cut":false,"hidden":false,"merged":[[9,3,9,4],[10,3,10,4],[11,3,11,4],[3,3,3,4],[24,3,24,4],[12,3,12,4],[13,3,13,4],[14,3,14,4],[15,3,15,4],[23,3,23,4],[22,3,22,4],[20,3,20,4],[29,3,29,4],[30,3,30,4],[4,3,4,4],[5,3,5,4],[6,3,6,4],[7,3,7,4],[8,3,8,4],[25,3,25,4],[26,3,26,4],[27,3,27,4],[28,3,28,4],[21,3,21,4],[16,3,16,4],[17,3,17,4],[18,3,18,4],[19,3,19,4]]}
[]
[null,"模块","规程管理","画面","规程浏览画面-参数设置","用例数",{"$f":"COUNTA(D5:D31)","v":21},"BUG数",{"$f":"COUNTIF(#REF!,\"否\")+COUNTIF(#REF!,\"否→是\")","v":{"$error":"#REF!"}}]
[]
[null,"序号","测试项","确认内容",null,"测试日期","测试者","是否通过","备注"]
[null,1,"参考方案","下拉框可选项数据来源\".\\plugins\\Cleanliness\\Config\\Rules\\ParameterSetting\"目录下配置文件名称"]
[null,2,"明场灰度","选中状态时，设定值有效，非选中状态下，参数设定不使用。"]
[null,3,"平均值","明场灰度平均值，设定范围：0~255"]
[null,4,"最大值","明场灰度最大值，设定范围：0~255"]
[null,5,"明场与偏光平均灰度差","选中状态时，设定值有效，非选中状态下，参数设定不使用。设定范围：0~255"]
[null,6,"拉伸长度/内切圆直径","选中状态时，设定值有效，非选中状态下，参数设定不使用。设定范围：1~999"]
[null,7,"内切圆直径","选中状态时，设定值有效，非选中状态下，参数设定不使用。设定范围：1~999"]
[null,8,"金属优先","单选按钮，选中状态，同时符合金属颗粒和纤维颗粒的情况下，优先判断为金属颗粒。"]
[null,9,"纤维优先","单选按钮，选中状态，同时符合金属颗粒和纤维颗粒的情况下，优先判断为纤维颗粒"]
[null,10,"删除按钮","弹出“您要删除该参数方案是吗？”，点击【确定】关闭提示框，完成删除操作，点击【取消】中止操作，关闭提示框。"]
[null,11,"操作结果确认","执行完删除操作后，确认参考方案下拉列表中，此前删除的方案看不到了。"]
[null,12,null,"关闭软件，再次打开后，查看参考方案中，确认删除方案没有出现在下拉列表中"]
[null,13,null,"确认\".\\plugins\\Cleanliness\\Config\\Rules\\ParameterSetting\"目录下是否存在删除方案名称对应的配置文件"]
[null,14,"添加新方案","参考方案位置录入名称，点击【保存】"]
[null,15,"操作结果确认","确认下拉列表中可以看到新增加的方案"]
[null,16,null,"关闭软件，再次打开后，查看参考方案中，确认新增方案是否出现在下拉列表中"]
[null,17,null,"确认\".\\plugins\\Cleanliness\\Config\\Rules\\ParameterSetting\"目录下是否存在新添加的方案名称对应的配置文件"]
[null,18,"保存按钮","将参考方案的编辑内容保存到配置文件中"]
[null,19,"操作结果确认","确认\".\\plugins\\Cleanliness\\Config\\Rules\\ParameterSetting\"目录下对应配置文件中，编辑项与界面一致"]
[null,20,null,"执行检测后，对照此处的设定的参数，确认检测结果与参数设定是否相符合。如纤维颗粒中是否存在内切圆直径大于设定值的，或是拉伸长度小于设定值的。如果有则说明检测结果有误"]
[null,21,"异常信息提示","修改参数后，不更改方案名称，点击【保存】，会弹出提示框，提示“该参数方案已经存在，是否覆盖？”点击【确定】关闭提示框，完成参数修改操作，点击【取消】中止操作，关闭提示框。"]

{"sheet":"分级设置","index":9,"n_rows":40,"n_cols":9,"rows_kept":40,"cut":false,"hidden":false,"merged":[[10,3,10,4],[4,3,4,4],[3,3,3,4],[5,3,5,4],[6,3,6,4],[7,3,7,4],[8,3,8,4],[9,3,9,4],[22,3,22,4],[11,3,11,4],[12,3,12,4],[13,3,13,4],[14,3,14,4],[15,3,15,4],[16,3,16,4],[17,3,17,4],[18,3,18,4],[19,3,19,4],[20,3,20,4],[21,3,21,4],[23,3,23,4],[24,3,24,4],[25,3,25,4],[26,3,26,4],[27,3,27,4],[28,3,28,4],[29,3,29,4],[30,3,30,4],[31,3,31,4],[32,3,32,4],[39,3,39,4],[33,3,33,4],[34,3,34,4],[35,3,35,4],[36,3,36,4],[37,3,37,4],[38,3,38,4],[44,3,44,4],[45,3,45,4],[40,3,40,4],[41,3,41,4],[42,3,42,4],[43,3,43,4]]}
[]
[null,"模块","规程管理","画面","规程浏览画面-分级设置","用例数",{"$f":"COUNTA(D5:D40)","v":36},"BUG数",{"$f":"COUNTIF(#REF!,\"否\")+COUNTIF(#REF!,\"否→是\")","v":{"$error":"#REF!"}}]
[]
[null,"序号","测试项","确认内容",null,"测试日期","测试者","是否通过","备注"]
[null,1,"使用参数","检测结果分级时默认情况下使用的特征参数。选项包括：最大卡规直径，最小卡规直径、面积、最大内切圆直径、等效圆直径，拉伸长度、长宽比、外接矩形高、外接矩形宽"]
[null,2,"连界设置","上、下边界条件组成方式设定"]
[null,3,"参考标准","检测结果分级参照的标准"]
[null,4,"参与计算颗粒类型","三种类型：金属、非金属、纤维。设定检测时参与计算的颗粒类型，选中的类型颗粒参与分级计算，未选中的类型颗粒，不参与分级计算"]
[null,5,"所有类型分级设置相同","分级参数分为金属、非金属、纤维和全部。默认情况下“所有类型分级设定相同”单选框为选中状态"]
[null,6,null,"“所有类型分级设定相同”单选框为选中状态时，表格只有全部一页。否则，参数表格分为金属、非金属、纤维和全部四个Tab页。可以对不同类型颗粒进行单独设置"]
[null,7,"表格","默认情况下，记录的显示顺序是按添加的顺序显示。包括：序号、颗粒尺寸级别名称、下边界、上边界、允许数量、颜色"]
[null,8,"允许数量使用的规一化参数","判别颗粒级别是否通过的依据。选项包括：绝对颗粒数量、单个零部件颗粒数量、单位面积（1000cm2）颗粒数量、单位体积（1000cm3）颗粒数量。选项决定在分极检测结果中使用哪列数值与允许数量进行比较，从而确定级别是否通过。"]
[null,9,"分级边界小数点位数","表格中上、下边界数值保留的小数位数。"]
[null,10,"新建","鼠标点击要插入的分级参数，点击【新建】可以在选择位置下添加一行新的分级参数。"]
[null,11,null,"如果新增数据行在最后一行，颗粒级别名称会按字母顺序自动顺序命名,下边界取上一个参数的下边界值，允许数量为空，颜色会有默认值。如果新增参数在中间位置，默认级别名称为上一条参数名称相同。"]
[null,12,"删除","鼠标点击要删除的行的任意单元格，点击删除，可直接删除该行记录。列表中看不到此条记录。"]
[null,13,"置顶","选择要置顶记录，点击【置顶】，可将该记录显示在表格中的第一行"]
[null,14,"上移","选择要置顶记录，点击【上移】，可将该记录在表格中的显示顺序上移一行"]
[null,15,"下移","选择要置顶记录，点击【下移】，可将该记录在表格中的显示顺序下移一行"]
[null,16,"置底","选择要置顶记录，点击【置底】，可将该记录显示在表格中的最后一行"]
[null,17,"操作结果确认","执行新增、删除、置顶、上移、下移、置底操作后，确认表格中数据与操作一致，可直接看到操作效果"]
[null,18,null,"关闭软件后，重新打开软件，操作结果依然有效，与操作相一致"]
[null,19,null,"执行检测后，确认各类颗粒的检测的分极结果与设置相一致。如分析设置中的“允许数量使用的归一化参数”选择以“单位面称颗粒数量”话，则检测结果中的“单位面积”一列数量值小于“允许数量”则最终认定为通过，否则为未通过。"]
[null,20,null,"确认检测结果分级模式下的“特征参数”与参数设置中的“使用参数”是否相同"]
[null,21,null,"在上下边界中输入数值的小数点位置多于“分级边界小数点位数”，确认边界小数点位数与设定一致，小数位数小于设定位数时正常显示，多于是按设定位置保留。"]
[null,22,"异常信息提示","新增或是修改现有分极名称时，输入当前已存在的名称。点击菜单中【保存】按钮，会弹出提示框，提示“分级名称不允许重复！”点击【确定】关闭提示框"]
[null,23,null,"参数的上边界值输入值小于或等于下边界值时，点击菜单中【保存】按钮，会弹出提示框，提示“上边界值必须大于下边界值！”点击【确定】关闭提示框"]
[null,24,"清洁度编码设置","点击【清洁度编码设置】按钮，弹出“清洁度级别编码”界面"]
[null,25,"新建","鼠标点击要插入的分级参数，点击【新建】可以在选择位置下添加一行新的级别编码。"]
[null,26,null,"如果新增数据行在最后一行，下边界取上一个参数的下边界值。如果新增参数在中间位置，默认级别名称为上一条参数名称相同。"]
[null,27,"删除","鼠标点击要删除的行的任意单元格，点击删除，可直接删除该行记录。列表中看不到此条记录。"]
[null,28,"置顶","选择要置顶记录，点击【置顶】，可将该记录显示在表格中的第一行"]
[null,29,"上移","选择要置顶记录，点击【上移】，可将该记录在表格中的显示顺序上移一行"]
[null,30,"下移","选择要置顶记录，点击【下移】，可将该记录在表格中的显示顺序下移一行"]
[null,31,"置底","选择要置顶记录，点击【置底】，可将该记录显示在表格中的最后一行"]
[null,32,"操作结果确认","执行新增、删除、置顶、上移、下移、置底操作后，确认表格中数据与操作一致，可直接看到操作效果"]
[null,33,null,"关闭软件后，重新打开软件，操作结果依然有效，与操作相一致"]
[null,34,null,"执行检测后，确认分极械中显示的清洁度编码与设置中的显示类型和分级相同。"]
[null,35,"异常信息提示","新增或是修改现有分级时，输入当前已存在的名称。点击【确定】按钮，会弹出提示框，提示“分级不允许重复！”点击【确定】关闭提示框"]
[null,36,null,"参数的上边界值输入值小于或等于下边界值时，点击【确定】按钮，会弹出提示框，提示“上边界值必须大于下边界值！”点击【确定】关闭提示框"]

{"sheet":"清洁度编码","index":10,"n_rows":22,"n_cols":9,"rows_kept":22,"cut":false,"hidden":false,"merged":[[3,3,3,4],[18,3,18,4],[4,3,4,4],[5,3,5,4],[8,3,8,4],[9,3,9,4],[10,3,10,4],[15,3,15,4],[24,3,24,4],[25,3,25,4],[26,3,26,4],[6,3,6,4],[7,3,7,4],[16,3,16,4],[19,3,19,4],[20,3,20,4],[21,3,21,4],[22,3,22,4],[23,3,23,4],[11,3,11,4],[12,3,12,4],[13,3,13,4],[14,3,14,4],[17,3,17,4]]}
[]
[null,"模块","规程管理","画面","规程浏览画面-分级设置-清洁度编码","用例数",{"$f":"COUNTA(D5:D22)","v":18},"BUG数",{"$f":"COUNTIF(#REF!,\"否\")+COUNTIF(#REF!,\"否→是\")","v":{"$error":"#REF!"}}]
[]
[null,"序号","测试项","确认内容",null,"测试日期","测试者","是否通过","备注"]
[null,1,"编码分隔符","编码中分级间的分隔符"]
[null,2,"归一化类型显示","单选项。两种显示方式式。"]
[null,3,"分级表格","显示信息为：分级、下限、上限、条件"]
[null,4,null,"默认情况下，记录的显示顺序是按添加的顺序显示"]
[null,5,"新建","鼠标点击要插入的分级参数，点击【新建】可以在选择位置下添加一行新的级别编码。"]
[null,6,null,"如果新增数据行在最后一行，下边界取上一个参数的下边界值。如果新增参数在中间位置，默认级别名称为上一条参数名称相同。"]
[null,7,"删除","鼠标点击要删除的行的任意单元格，点击删除，可直接删除该行记录。列表中看不到此条记录。"]
[null,8,"置顶","选择要置顶记录，点击【置顶】，可将该记录显示在表格中的第一行"]
[null,9,"上移","选择要置顶记录，点击【上移】，可将该记录在表格中的显示顺序上移一行"]
[null,10,"下移","选择要置顶记录，点击【下移】，可将该记录在表格中的显示顺序下移一行"]
[null,11,"置底","选择要置顶记录，点击【置底】，可将该记录显示在表格中的最后一行"]
[null,12,"确定按钮","将界面中的全部信息保存后，关闭窗体"]
[null,13,"取消","不保存界面上的编辑信息，关闭窗体"]
[null,14,"操作结果确认","执行新增、删除、置顶、上移、下移、置底操作后，确认表格中数据与操作一致，可直接看到操作效果"]
[null,15,null,"关闭软件后，重新打开软件，操作结果依然有效，与操作相一致"]
[null,16,null,"执行检测后，确认分极模式中显示的清洁度编码与设置中的显示类型和分级相同。"]
[null,17,"异常信息提示","新增或是修改现有分级时，输入当前已存在的名称。点击【确定】按钮，会弹出提示框，提示“分级不允许重复！”点击【确定】关闭提示框"]
[null,18,null,"参数的上边界值输入值小于或等于下边界值时，点击【确定】按钮，会弹出提示框，提示“上边界值必须大于下边界值！”点击【确定】关闭提示框"]

{"sheet":"报告选项","index":11,"n_rows":18,"n_cols":9,"rows_kept":18,"cut":false,"hidden":false,"merged":[[3,3,3,4],[4,3,4,4],[5,3,5,4],[6,3,6,4],[7,3,7,4],[9,3,9,4],[18,3,18,4],[19,3,19,4],[8,3,8,4],[14,3,14,4],[15,3,15,4],[16,3,16,4],[17,3,17,4],[10,3,10,4],[11,3,11,4],[12,3,12,4],[13,3,13,4]]}
[]
[null,"模块","规程管理","画面","规程浏览-报告选项","用例数",{"$f":"COUNTA(D5:D18)","v":14},"BUG数",{"$f":"COUNTIF(#REF!,\"否\")+COUNTIF(#REF!,\"否→是\")","v":{"$error":"#REF!"}}]
[]
[null,"序号","测试项","确认内容",null,"测试日期","测试者","是否通过","备注"]
[null,1,"图片显示模式","单选项，两种模式：彩色图、灰度图。输出到报告中的图片显示模式设定。目前只支持灰度图显示"]
[null,2,"最大颗粒占图比例","设置范围：0~100"]
[null,3,"金属颗粒图片数量","设置范围：0~300.指定报告金属颗粒输出图片数量。当颗粒数量小于设定值是，输出全部颗粒图片。"]
[null,4,"非金属颗粒图片数量","设置范围：0~300.指定报告非金属颗粒输出图片数量。当颗粒数量小于设定值是，输出全部颗粒图片。"]
[null,5,"纤维颗粒图片数量","设置范围：0~300.指定报告纤维颗粒输出图片数量。当颗粒数量小于设定值是，输出全部颗粒图片。"]
[null,6,"图片中显示标尺","选中时，报告中颗粒图片上显示标尺信息，否则不显示颗粒图片上不显示标尺信息。"]
[null,7,"显示图片脚注信息","选中时，报告中颗粒图片上方显示脚注信息，否则不显示颗粒图片上方不显示标尺信息。"]
[null,8,"操作结果确认","确认编辑信息是否保存到项目生成目录中的Metis2.0\\Metis\\bin\\Debug\\plugins\\Cleanliness\\Config\\Rules\\中配置文件中是否含被删除规程的配置文件中的ReportSetting节中"]
[null,9,null,"关闭软件，重新启动，确认被界面显示内容与设置相同"]
[null,10,null,"输出检测报告，确认图片显示颜色是否与”图片显示模式“设置一致。目前只支持灰度图显示"]
[null,11,null,"输出检测报告，确认金属颗粒、非金属颗粒、纤维颗粒输出图片的数量是否与设定值相同。如果颗粒数量小于设定值，是否输出全部颗粒图片"]
[null,12,null,"输出检测报告，如果设定了”图片中显示标尺“的话，确认图片上是否有标尺信息。如果未选择，确认图片上是否无标尺信息"]
[null,13,null,"输出检测报告，如果设定了”显示图片脚注信息“的话，确认图片上方位置是否有脚注信息。如果未选择，确认图片上方位置是否无脚注信息"]
[null,14,null,"输出检测报告，确认输出的最大颗粒点图片的比例与”最大颗粒占图比例“相符"]